[Event "FIDE World Cup O12-B 2024"]
[Site "Batumi"]
[Date "2024.06.29"]
[Round "7.7"]
[White "Akhmet, Suleyman"]
[Black "Pirtac, Alexandru"]
[Result "0-1"]
[ECO "A57"]
[WhiteElo "1793"]
[BlackElo "1977"]
[Annotator "NA RC"]
[PlyCount "90"]
[EventDate "2024.06.23"]
[EventType "swiss"]
[EventCountry "GEO"]
[SourceTitle "playchess.com"]
[Source "ChessBase"]
[SourceQuality "1"]
[TimeControl "5400+30"]

1. d4 {[%emt 0:00:09]} Nf6 {[%emt 0:00:03]} 2. c4 {[%emt 0:00:04]} g6 {[%emt 0:00:52]} 3. Nc3 {[%emt 0:00:08]} Bg7 {[%emt 0:00:20]} 4. e4 {[%emt 0:00:06]} d6 {[%emt 0:00:30]} 5. Bd3 {[%emt 0:00:05]} O-O {[%emt 0:02:04]} 6. Nge2 {[%emt 0:00:07]} c5 {[%emt 0:01:05]} 7. d5 {[%emt 0:00:19]} a6 {[%emt 0:00:45]} 8. O-O {[%emt 0:01:00]} b5 {[%emt 0:03:07]} 9. cxb5 {[%emt 0:00:43]} axb5 {[%emt 0:00:35]} 10. Bxb5 {[%emt 0:00:40]} Ba6 {[%emt 0:00:05]} 11. Bxa6 {[%emt 0:01:47]} Nxa6 {[%emt 0:00:20]} 12. Bf4 {[%emt 0:02:23] A57: Benko/Volga Gambit.} h6 {[%emt 0:02:41]} 13. Qd2 {[%emt 0:00:52]} Kh7 {[%emt 0:00:23]} 14. Rac1 {[%emt 0:11:37]} Qb6 {[%emt 0:03:23]} 15. Rfd1 {[%emt 0:08:22]} Rfb8 {[%emt 0:01:06]} 16. b3 {[%emt 0:18:56]} Nb4 {[%emt 0:05:49]} 17. e5 {[%emt 0:04:23]} Nh5 {[%emt 0:04:27]} 18. exd6 {[%emt 0:04:12]} Nxf4 {[%emt 0:00:56]} 19. Qxf4 {[%emt 0:00:24]} exd6 {[%emt 0:01:25]} 20. Qxf7 {[%emt 0:01:25]} Rf8 {[%emt 0:00:31]} 21. Qe6 {[%emt 0:00:28]} Nxa2 {[%emt 0:00:12]} 22. Nxa2 {[%emt 0:04:20]} Rxa2 {[%emt 0:00:47]} 23. Qe3 $11 {[%emt 0:08:17]} Qd8 {[%emt 0:12:14]} 24. Rd2 {[%emt 0:04:36]} Re8 {[%emt 0:09:31]} 25. Qd3 {[%emt 0:00:25]} Rxd2 {[%emt 0:06:05]} 26. Qxd2 {[%emt 0:00:04]} Qb6 {[%emt 0:00:12]} 27. Qd3 {[%emt 0:01:50]} Qb4 {[%emt 0:00:36]} 28. g3 {[%emt 0:01:53]} Qe4 {[%emt 0:02:09]} 29. Nf4 {[%emt 0:15:44]} Qxd3 {[%emt 0:01:35]} 30. Nxd3 {[%emt 0:00:14]} Rb8 {[%emt 0:00:01]} 31. Rb1 {[%emt 0:05:19]} c4 {[%emt 0:00:18]} 32. Nc1 {[%emt 0:00:05]} Rb5 {[%emt 0:01:02]} 33. Kf1 {[%emt 0:03:06]} c3 {[%emt 0:00:33]} 34. Nd3 {[%emt 0:01:11]} Rxd5 {[%emt 0:00:39]} 35. Ke2 {[%emt 0:00:47]} Rb5 {[%emt 0:00:45]} 36. Kd1 {[%emt 0:00:46]} Ra5 {[%emt 0:01:25]} 37. Rc1 {[%emt 0:01:38]} d5 {[%emt 0:01:09]} 38. b4 {[%emt 0:00:25]} Ra3 {[%emt 0:00:38]} 39. Rc2 {[%emt 0:00:37]} g5 {[%emt 0:02:23]} 40. g4 {[%emt 0:00:29]} Rb3 {[%emt 0:01:03]} 41. Kc1 {[%emt 0:00:31]} Ra3 {[%emt 0:01:11]} 42. Kb1 {[%emt 0:00:28]} Kg8 {[%emt 0:01:00]} 43. Nc5 {[%emt 0:00:33]} Kf7 {[%emt 0:36:05]} 44. Ra2 {[%emt 0:00:25]} c2+ {[%emt 0:00:00]} 45. Rxc2 {[%emt 0:00:10]} Ra1# {[%emt 0:00:00]} 0-1

[Event "FIDE World Cup O12-B 2024"]
[Site "Batumi"]
[Date "2024.06.29"]
[Round "7.8"]
[White "Amreyev, Azat"]
[Black "Kakavand, Ramtin"]
[Result "0-1"]
[ECO "D04"]
[WhiteElo "1704"]
[BlackElo "2059"]
[Annotator "NA RC"]
[PlyCount "94"]
[EventDate "2024.06.23"]
[EventType "swiss"]
[EventCountry "GEO"]
[SourceTitle "playchess.com"]
[Source "ChessBase"]
[SourceQuality "1"]
[TimeControl "5400+30"]

1. d4 {[%emt 0:00:18]} d5 {[%emt 0:00:01]} 2. Nf3 {[%emt 0:00:08]} Nf6 {[%emt 0:00:05]} 3. e3 {[%emt 0:00:34]} c5 {[%emt 0:00:22]} 4. b3 {[%emt 0:00:17]} Nc6 {[%emt 0:00:18]} 5. Bd3 {[%emt 0:01:05]} Bg4 {[%emt 0:01:37]} 6. Bb2 {[%emt 0:01:27]} e6 {[%emt 0:00:15]} 7. a3 {[%emt 0:01:16]} Be7 {[%emt 0:09:47]} 8. O-O {[%emt 0:00:36]} O-O {[%emt 0:00:08]} 9. Nbd2 {[%emt 0:00:29]} a5 {[%emt 0:06:49]} 10. Qe1 {[%emt 0:24:58]} a4 {[%emt 0:00:30]} 11. Ne5 {[%emt 0:01:10]} Bh5 {[%emt 0:06:43]} (11... axb3 $15 12. Nxg4 Nxg4) 12. f4 {[%emt 0:06:58]} (12. Nxc6 $11 bxc6 13. dxc5) 12... Qb6 {[%emt 0:04:58]} 13. Kh1 {[%emt 0:09:37]} (13. Rb1 $15 {should be considered.}) 13... Rfc8 $2 {[%emt 0:10:06]} ({But not} 13... cxd4 14. exd4 axb3 (14... Nxd4 15. Qf2 $16) 15. cxb3 $15) (13... c4 $1 $17 {[%cal Rc4d3]} 14. Ndxc4 dxc4 15. Nxc4 Qc7) 14. dxc5 {[%emt 0:03:00]} Qxc5 $14 {[%emt 0:08:39]} (14... Bxc5 $11 {is more appropriate.} 15. b4 Nxe5 (15... Bxe3 16. Nec4 $16) 16. fxe5 Nd7) 15. b4 {[%emt 0:02:33]} Qb6 {[%emt 0:00:41]} 16. c4 {[%emt 0:11:53]} Bg6 {[%emt 0:02:21]} 17. Bxg6 {[%emt 0:10:36]} hxg6 {[%emt 0:00:11]} 18. Rf3 {[%emt 0:04:01]} Ne4 {[%emt 0:05:13]} 19. cxd5 {[%emt 0:14:05]} exd5 {[%emt 0:00:42]} 20. Nxe4 {[%emt 0:05:29]} dxe4 {[%emt 0:00:17]} 21. Rf2 {[%emt 0:00:00]} Rd8 {[%emt 0:03:21]} 22. g3 {[%emt 0:00:00]} Nxe5 {[%emt 0:03:00]} 23. fxe5 {[%emt 0:00:05]} Rd3 {[%emt 0:00:23]} 24. Bd4 {[%emt 0:00:18]} Qe6 {[%emt 0:00:16]} 25. Rc2 {[%emt 0:01:09]} Bd8 {[%emt 0:02:36]} 26. Rc3 {[%emt 0:00:35]} Bb6 {[%emt 0:00:22]} 27. Rxd3 {[%emt 0:00:06]} exd3 {[%emt 0:00:01]} 28. Qc3 {[%emt 0:00:27]} Bxd4 {[%emt 0:01:42]} 29. Qxd4 {[%emt 0:00:35]} Qc6+ {[%emt 0:09:53]} 30. Kg1 {[%emt 0:00:05]} Qc2 {[%emt 0:00:07]} 31. Rf1 {[%emt 0:00:06]} Qb3 {[%emt 0:12:33]} 32. e6 {[%emt 0:01:10]} Qxe6 {[%emt 0:00:52]} 33. Qxd3 {[%emt 0:00:05]} Re8 {[%emt 0:00:02]} 34. Re1 {[%emt 0:00:19]} Qb3 {[%emt 0:00:25]} 35. Qxb3 {[%emt 0:00:11]} axb3 {[%emt 0:00:01]} 36. Kf2 {[%emt 0:00:11]} Ra8 {[%emt 0:02:22]} 37. Ra1 {[%emt 0:00:05]} Kf8 {[%emt 0:00:26]} 38. a4 {[%emt 0:00:05]} Rxa4 {[%emt 0:00:04]} 39. Rb1 {[%emt 0:00:47]} Rxb4 {[%emt 0:00:06]} 40. Ke2 {[%emt 0:00:04]} Ke7 {[%emt 0:00:16]} 41. Kd3 {[%emt 0:00:06]} b2 {[%emt 0:00:06]} 42. Kc3 {[%emt 0:00:05]} Rb6 {[%emt 0:00:04]} 43. Rxb2 {[%emt 0:00:15]} Rxb2 {[%emt 0:00:15]} 44. Kxb2 {[%emt 0:00:04]} Ke6 {[%emt 0:00:04]} 45. Kc3 {[%emt 0:00:11]} Ke5 {[%emt 0:00:04]} 46. Kd3 {[%emt 0:00:08]} b5 {[%emt 0:00:03]} 47. h3 {[%emt 0:00:07]} b4 {[%emt 0:00:04]} 0-1

[Event "FIDE World Cup O12-B 2024"]
[Site "Batumi"]
[Date "2024.06.29"]
[Round "7.9"]
[White "Ambartsumyan, Yuri"]
[Black "Yusupov, Rauf"]
[Result "1-0"]
[ECO "D41"]
[WhiteElo "1750"]
[BlackElo "1800"]
[Annotator "NA RC"]
[PlyCount "73"]
[EventDate "2024.06.23"]
[EventType "swiss"]
[EventCountry "GEO"]
[SourceTitle "playchess.com"]
[Source "ChessBase"]
[SourceQuality "1"]
[TimeControl "5400+30"]

1. d4 {[%emt 0:00:01]} d5 {[%emt 0:00:03]} 2. c4 {[%emt 0:00:06]} e6 {[%emt 0:00:07]} 3. Nc3 {[%emt 0:00:03]} Nf6 {[%emt 0:00:03]} 4. cxd5 {[%emt 0:00:02]} Nxd5 {[%emt 0:00:35]} 5. e4 {[%emt 0:00:07]} Nxc3 {[%emt 0:00:03]} 6. bxc3 {[%emt 0:00:04]} c5 {[%emt 0:00:19]} 7. Nf3 {[%emt 0:00:05]} cxd4 {[%emt 0:01:21]} 8. cxd4 {[%emt 0:00:04]} Nc6 {[%emt 0:02:24]} 9. Bd3 {[%emt 0:03:03]} Bb4+ {[%emt 0:07:27]} 10. Bd2 {[%emt 0:00:22]} O-O {[%emt 0:02:22]} 11. Bxb4 {[%emt 0:08:27]} Nxb4 {[%emt 0:00:05]} 12. Bc4 {[%emt 0:00:14]} b5 {[%emt 0:05:25]} 13. Bb3 {[%emt 0:02:12]} Bb7 {[%emt 0:04:19]} 14. Qe2 {[%emt 0:03:17]} Nc6 {[%emt 0:21:03]} 15. Rd1 {[%emt 0:01:34]} Qa5+ {[%emt 0:01:16]} 16. Rd2 {[%emt 0:03:57]} Rad8 {[%emt 0:11:01]} 17. O-O {[%emt 0:00:33]} Ne7 {[%emt 0:00:59]} 18. Rfd1 {[%emt 0:01:12]} Ng6 {[%emt 0:05:45]} 19. Qe3 {[%emt 0:00:55]} b4 {[%emt 0:02:09]} 20. h4 {[%emt 0:09:21]} Qh5 {[%emt 0:02:35]} 21. d5 {[%emt 0:04:08]} exd5 {[%emt 0:09:31]} 22. Bxd5 {[%emt 0:00:53]} Bxd5 {[%emt 0:01:05]} 23. Rxd5 {[%emt 0:00:05]} Rxd5 {[%emt 0:00:03]} 24. Rxd5 {[%emt 0:00:05]} Qg4 {[%emt 0:01:32]} 25. Rg5 {[%emt 0:03:28]} Qe6 {[%emt 0:06:03]} 26. h5 {[%emt 0:03:52]} Ne7 {[%emt 0:01:14]} 27. Re5 {[%emt 0:00:52]} Qd6 {[%emt 0:03:36]} 28. h6 {[%emt 0:00:39]} gxh6 {[%emt 0:08:00]} 29. Rh5 {[%emt 0:05:00]} Re8 {[%emt 0:01:14]} 30. e5 {[%emt 0:15:23]} Qd1+ {[%emt 0:01:38]} 31. Kh2 {[%emt 0:00:09]} Ng6 {[%emt 0:00:30]} 32. Qxh6 {[%emt 0:00:37]} Qd5 {[%emt 0:00:34]} 33. Qxh7+ {[%emt 0:00:21]} Kf8 {[%emt 0:00:03]} 34. Rf5 {[%emt 0:01:25]} Qe6 {[%emt 0:02:14]} 35. Rf6 {[%emt 0:00:22]} Qd5 {[%emt 0:00:19]} 36. Qxg6 {[%emt 0:00:22]} Ke7 {[%emt 0:00:46]} 37. Rxf7+ {[%emt 0:00:43]} 1-0

[Event "FIDE World Cup O12-B 2024"]
[Site "Batumi"]
[Date "2024.06.29"]
[Round "7.10"]
[White "Amangeldy, Ramazan"]
[Black "Suleymanov, Askhab"]
[Result "1-0"]
[ECO "C54"]
[WhiteElo "1740"]
[BlackElo "1630"]
[Annotator "NA RC"]
[PlyCount "119"]
[EventDate "2024.06.23"]
[EventType "swiss"]
[EventCountry "GEO"]
[SourceTitle "playchess.com"]
[Source "ChessBase"]
[SourceQuality "1"]
[TimeControl "5400+30"]

1. e4 {[%emt 0:00:02]} e5 {[%emt 0:00:09]} 2. Nf3 {[%emt 0:00:06]} Nc6 {[%emt 0:00:12]} 3. Bc4 {[%emt 0:00:05]} Bc5 {[%emt 0:00:11]} 4. d3 {[%emt 0:00:13]} Nf6 {[%emt 0:00:26]} 5. Bb3 {[%emt 0:00:05]} O-O {[%emt 0:00:41]} 6. c3 {[%emt 0:00:01]} d5 {[%emt 0:00:22]} 7. Nbd2 {[%emt 0:00:07]} dxe4 {[%emt 0:00:34]} 8. dxe4 {[%emt 0:00:06]} Qe7 {[%emt 0:00:18]} 9. Qe2 {[%emt 0:00:11]} b6 {[%emt 0:00:34]} 10. h3 {[%emt 0:00:35]} a5 {[%emt 0:07:37]} 11. Bc4 {[%emt 0:00:37]} Be6 {[%emt 0:00:40]} 12. Nf1 {[%emt 0:00:42]} h6 {[%emt 0:01:23]} 13. Ng3 {[%emt 0:00:25]} Bxf2+ {[%emt 0:00:51]} 14. Qxf2 {[%emt 0:01:38]} Bxc4 {[%emt 0:00:16]} 15. Nf5 {[%emt 0:00:09]} Qe6 {[%emt 0:13:35]} 16. Qh4 {[%emt 0:00:44]} Ne7 {[%emt 0:23:59]} 17. Bxh6 {[%emt 0:07:54]} Nxf5 {[%emt 0:17:59]} 18. exf5 {[%emt 0:00:06]} Qxf5 {[%emt 0:01:01]} 19. Bxg7 {[%emt 0:00:20]} Kxg7 {[%emt 0:00:17]} 20. Qxc4 {[%emt 0:00:06]} Qe4+ {[%emt 0:00:24]} 21. Qxe4 {[%emt 0:00:23]} Nxe4 {[%emt 0:00:01]} 22. O-O {[%emt 0:00:23]} f6 {[%emt 0:02:38]} 23. Rad1 {[%emt 0:02:32]} Rad8 {[%emt 0:02:35]} 24. Nh4 {[%emt 0:00:17]} Ng3 {[%emt 0:06:21]} 25. Rfe1 {[%emt 0:00:17]} b5 {[%emt 0:04:22]} 26. Kh2 {[%emt 0:01:40]} Nh5 {[%emt 0:01:33]} 27. Nf5+ {[%emt 0:00:05]} Kf7 {[%emt 0:00:17]} 28. Ne3 {[%emt 0:00:49]} Nf4 {[%emt 0:02:06]} 29. c4 {[%emt 0:01:00]} c6 {[%emt 0:02:06]} 30. g3 {[%emt 0:01:44]} Ne6 {[%emt 0:00:40]} 31. Nf5 {[%emt 0:01:20]} Nd4 {[%emt 0:02:38]} 32. Nxd4 {[%emt 0:00:50]} Rxd4 {[%emt 0:03:19]} 33. cxb5 {[%emt 0:00:11]} cxb5 {[%emt 0:00:31]} 34. Rxd4 {[%emt 0:00:13]} exd4 {[%emt 0:00:04]} 35. Kg2 {[%emt 0:00:05]} Rc8 {[%emt 0:00:21]} 36. Kf3 {[%emt 0:02:39]} Rc2 {[%emt 0:00:50]} 37. Rb1 {[%emt 0:00:08]} Ke6 {[%emt 0:03:29]} 38. Ke4 {[%emt 0:00:20]} Rd2 {[%emt 0:00:59]} 39. h4 {[%emt 0:00:25]} f5+ {[%emt 0:00:29]} 40. Kf3 {[%emt 0:00:26]} Kd5 {[%emt 0:01:04]} 41. Kf4 {[%emt 0:00:22]} Rf2+ {[%emt 0:00:21]} 42. Kg5 {[%emt 0:00:10]} d3 {[%emt 0:00:34]} 43. h5 {[%emt 0:00:15]} Ke4 {[%emt 0:00:36]} 44. h6 {[%emt 0:00:39]} d2 {[%emt 0:00:22]} 45. Rh1 {[%emt 0:00:55]} Re2 {[%emt 0:01:33]} 46. h7 {[%emt 0:00:11]} Re1 {[%emt 0:02:12]} 47. h8=Q {[%emt 0:00:14]} d1=Q {[%emt 0:00:00]} 48. Rxe1+ {[%emt 0:00:03]} Qxe1 {[%emt 0:00:00]} 49. Qe8+ {[%emt 0:00:02]} Kf3 {[%emt 0:00:00]} 50. Qxe1 {[%emt 0:00:04]} b4 {[%emt 0:00:00]} 51. Kxf5 {[%emt 0:00:03]} b3 {[%emt 0:00:00]} 52. g4 {[%emt 0:00:03]} bxa2 {[%emt 0:00:00]} 53. g5 {[%emt 0:00:02]} a4 {[%emt 0:00:00]} 54. g6 {[%emt 0:00:03]} a3 {[%emt 0:00:00]} 55. g7 {[%emt 0:00:10]} axb2 {[%emt 0:00:09]} 56. Qc3+ {[%emt 0:00:01]} Kf2 {[%emt 0:00:11]} 57. Qc2+ {[%emt 0:00:08]} Ke3 {[%emt 0:00:09]} 58. g8=Q {[%emt 0:00:16]} b1=Q {[%emt 0:03:45]} 59. Qg3+ {[%emt 0:00:15]} Kd4 {[%emt 0:00:08]} 60. Qgd3# {[%emt 0:00:24]} 1-0

[Event "FIDE World Cup O12-B 2024"]
[Site "Batumi"]
[Date "2024.06.29"]
[Round "7.11"]
[White "Cronje, Johannes Christiaan"]
[Black "Chia, Yu Zhe Ashton"]
[Result "0-1"]
[ECO "A20"]
[WhiteElo "1504"]
[BlackElo "2229"]
[Annotator "RC"]
[PlyCount "132"]
[EventDate "2024.06.23"]
[EventType "swiss"]
[EventCountry "GEO"]
[SourceTitle "playchess.com"]
[Source "ChessBase"]
[SourceQuality "1"]
[TimeControl "5400+30"]

1. c4 {[%emt 0:00:03]} e5 {[%emt 0:00:43]} 2. g3 {[%emt 0:00:07]} c6 {[%emt 0:00:13]} 3. Bg2 {[%emt 0:00:07]} d5 {[%emt 0:00:04]} 4. cxd5 {[%emt 0:00:17]} cxd5 {[%emt 0:00:01]} 5. e3 {[%emt 0:00:25]} Nc6 {[%emt 0:00:13]} 6. Ne2 {[%emt 0:00:09]} Nf6 {[%emt 0:00:05]} 7. O-O {[%emt 0:00:13]} Be7 {[%emt 0:01:15]} 8. d4 {[%emt 0:00:41]} e4 {[%emt 0:01:49]} 9. f3 {[%emt 0:00:33]} exf3 {[%emt 0:00:24]} 10. Rxf3 {[%emt 0:01:38]} Bg4 {[%emt 0:00:38]} 11. Rf1 {[%emt 0:01:06]} Qd7 {[%emt 0:00:26]} 12. Nbc3 {[%emt 0:00:44]} h5 {[%emt 0:01:26]} 13. h4 {[%emt 0:00:47]} Bd8 {[%emt 0:35:13]} 14. Bd2 {[%emt 0:02:17]} Bc7 {[%emt 0:00:28]} 15. Be1 {[%emt 0:00:16]} Ne7 {[%emt 0:01:12]} 16. Qd3 {[%emt 0:02:42]} O-O {[%emt 0:02:40]} 17. Nf4 {[%emt 0:02:03]} Bxf4 {[%emt 0:00:12]} 18. exf4 {[%emt 0:01:15]} Nf5 {[%emt 0:00:53]} 19. Bf2 {[%emt 0:01:26]} Qd6 {[%emt 0:07:24]} 20. Qb5 {[%emt 0:02:47]} a6 {[%emt 0:00:45]} 21. Qc5 {[%emt 0:01:14]} Qxc5 {[%emt 0:01:21]} 22. dxc5 {[%emt 0:00:11]} d4 {[%emt 0:00:50]} 23. Nd5 {[%emt 0:01:09]} Nxd5 {[%emt 0:08:38]} 24. Bxd5 {[%emt 0:01:51]} Rab8 {[%emt 0:35:37]} 25. Be4 {[%emt 0:04:00]} Rfd8 {[%emt 0:00:00]} 26. Bd3 {[%emt 0:04:04]} Ne7 {[%emt 0:00:00]} 27. Rfe1 {[%emt 0:01:48]} Kf8 {[%emt 0:00:00]} 28. Rac1 {[%emt 0:01:55]} Nc6 {[%emt 0:00:00]} 29. a3 {[%emt 0:00:37]} Rbc8 {[%emt 0:00:00]} 30. b4 {[%emt 0:00:44]} Na7 {[%emt 0:00:00]} 31. a4 {[%emt 0:00:43]} Nc6 {[%emt 0:00:00]} 32. Rb1 {[%emt 0:02:50]} a5 {[%emt 0:00:00]} 33. bxa5 {[%emt 0:01:41]} Nxa5 {[%emt 0:00:00]} 34. Rb5 {[%emt 0:01:41]} Ra8 {[%emt 0:00:00]} 35. Reb1 {[%emt 0:02:39]} Bf3 {[%emt 0:00:00]} 36. Be1 {[%emt 0:01:16]} Nc6 {[%emt 0:00:00]} 37. Rxb7 {[%emt 0:01:19]} Rxa4 {[%emt 0:00:17]} 38. Kf2 {[%emt 0:02:16]} Bd5 {[%emt 0:01:09]} 39. R7b6 {[%emt 0:01:59]} Ra3 {[%emt 0:00:41]} 40. Bb5 {[%emt 0:03:26]} Ra2+ {[%emt 0:00:59]} 41. Kf1 {[%emt 0:01:19]} Ne7 {[%emt 0:01:39]} 42. c6 {[%emt 0:02:35]} Nf5 {[%emt 0:03:33]} 43. Bf2 {[%emt 0:01:41]} Rc8 {[%emt 0:00:33]} 44. Re1 {[%emt 0:01:29]} Nd6 {[%emt 0:00:18]} 45. c7 {[%emt 0:02:11]} Nxb5 {[%emt 0:00:34]} 46. Rb8 {[%emt 0:01:37]} Ra8 {[%emt 0:00:11]} 47. Bxd4 {[%emt 0:02:11]} Nxd4 {[%emt 0:00:29]} 48. Rd1 {[%emt 0:00:31]} Bc4+ {[%emt 0:00:14]} 49. Kf2 {[%emt 0:00:43]} Ne6 {[%emt 0:00:35]} 50. Rc1 {[%emt 0:02:44]} Ba6 {[%emt 0:01:48]} 51. Ra1 {[%emt 0:01:17]} Nxc7 {[%emt 0:00:00]} 52. Rxc8+ {[%emt 0:00:39]} Rxc8 {[%emt 0:00:00]} 53. Rg1 {[%emt 0:00:40]} Nd5 {[%emt 0:00:00]} 54. Rd1 {[%emt 0:00:21]} Rc2+ {[%emt 0:00:00]} 55. Kg1 {[%emt 0:00:20]} Ne3 {[%emt 0:00:21]} 56. Re1 {[%emt 0:00:23]} Rg2+ {[%emt 0:00:13]} 57. Kh1 {[%emt 0:00:18]} Rxg3 {[%emt 0:00:10]} 58. Rxe3 {[%emt 0:00:26]} Rxe3 {[%emt 0:00:16]} 59. Kg2 {[%emt 0:00:09]} Ke7 {[%emt 0:00:07]} 60. Kf2 {[%emt 0:00:07]} Re2+ {[%emt 0:00:04]} 61. Kf1 {[%emt 0:00:13]} Kf6 {[%emt 0:00:54]} 62. Kg1 {[%emt 0:00:09]} Kf5 {[%emt 0:00:07]} 63. Kf1 {[%emt 0:00:06]} Kg4 {[%emt 0:00:17]} 64. Kg1 {[%emt 0:00:05]} Kg3 {[%emt 0:00:05]} 65. Kf1 {[%emt 0:00:11]} Re8+ {[%emt 0:00:10]} 66. Kg1 {[%emt 0:00:12]} Re1# {[%emt 0:00:02]} 0-1

[Event "FIDE World Cup O12-B 2024"]
[Site "Batumi"]
[Date "2024.06.29"]
[Round "7.12"]
[White "Atar, Semih Akif"]
[Black "Khubuluri, Zaal"]
[Result "1/2-1/2"]
[ECO "A36"]
[WhiteElo "1660"]
[BlackElo "1501"]
[Annotator "NA RC"]
[PlyCount "51"]
[EventDate "2024.06.23"]
[EventType "swiss"]
[EventCountry "GEO"]
[SourceTitle "playchess.com"]
[Source "ChessBase"]
[SourceQuality "1"]
[TimeControl "5400+30"]

1. c4 {[%emt 0:00:03]} c5 {[%emt 0:00:18]} 2. g3 {[%emt 0:00:05]} Nc6 {[%emt 0:00:10]} 3. Bg2 {[%emt 0:00:06]} g6 {[%emt 0:00:11]} 4. Nc3 {[%emt 0:00:10]} Bg7 {[%emt 0:00:58]} 5. e4 {[%emt 0:00:11]} d6 {[%emt 0:02:16]} 6. Nge2 {[%emt 0:00:25]} Bg4 {[%emt 0:07:18]} 7. h3 {[%emt 0:00:44]} Bd7 {[%emt 0:01:43]} 8. d3 {[%emt 0:00:42]} Nf6 {[%emt 0:04:40]} 9. O-O {[%emt 0:00:49]} O-O {[%emt 0:04:57]} 10. Be3 {[%emt 0:04:40]} Qc8 {[%emt 0:01:53]} 11. Kh2 {[%emt 0:00:28]} Ne5 {[%emt 0:00:50]} 12. Nf4 {[%emt 0:06:43]} Nc6 {[%emt 0:09:02]} 13. Rb1 {[%emt 0:12:01]} Re8 {[%emt 0:03:22]} 14. a3 {[%emt 0:18:41]} Rb8 {[%emt 0:26:33]} 15. b4 {[%emt 0:04:46]} cxb4 {[%emt 0:01:52]} 16. axb4 {[%emt 0:01:22]} b6 {[%emt 0:04:03]} 17. b5 {[%emt 0:06:23]} Na5 {[%emt 0:05:39]} 18. Bc1 {[%emt 0:09:20]} Bg4 {[%emt 0:16:10]} 19. f3 {[%emt 0:03:55]} Bd7 {[%emt 0:00:35]} 20. Bb2 {[%emt 0:00:33]} e5 {[%emt 0:02:01]} 21. Nfd5 {[%emt 0:01:49]} Nxd5 {[%emt 0:00:42]} 22. Nxd5 {[%emt 0:00:34]} Be6 {[%emt 0:01:06]} 23. Nb4 {[%emt 0:04:56]} Qd7 {[%emt 0:01:15]} 24. Bc3 {[%emt 0:03:17]} Nb7 {[%emt 0:01:49]} 25. Nc6 {[%emt 0:02:05]} Ra8 {[%emt 0:00:14]} 26. Ra1 {[%emt 0:04:30]} 1/2-1/2